[Event "2nd Charlotte Masters 2021"]
[Site "Charlotte"]
[Date "2021.04.09"]
[Round "1.1"]
[White "Liang, Jason"]
[Black "Matta, Nicholas"]
[Result "0-1"]
[ECO "C58"]
[WhiteElo "2351"]
[BlackElo "2201"]
[Annotator "NA"]
[PlyCount "112"]
[EventDate "2021.04.09"]
[EventType "swiss"]
[EventCountry "USA"]
[SourceTitle "playchess.com"]
[Source "ChessBase"]
[SourceQuality "1"]
[TimeControl "5400+30"]

1. e4 {[%emt 0:06:26]} e5 {[%emt 0:00:00]} 2. Nf3 {[%emt 0:00:12]} Nc6 {[%emt 0:00:00]} 3. Bc4 {[%emt 0:00:16]} Nf6 {[%emt 0:00:00]} 4. Ng5 {[%emt 0:00:13]} d5 {[%emt 0:00:08]} 5. exd5 {[%emt 0:00:10]} Na5 {[%emt 0:00:08]} 6. Bb5+ {[%emt 0:00:08]} c6 {[%emt 0:00:07]} 7. dxc6 {[%emt 0:00:06]} bxc6 {[%emt 0:00:07]} 8. Bd3 {[%emt 0:00:14]} Nd5 {[%emt 0:00:15]} 9. Nf3 {[%emt 0:00:09]} Bd6 {[%emt 0:00:14]} 10. O-O {[%emt 0:00:09]} Nf4 {[%emt 0:00:11]} 11. Nc3 {[%emt 0:00:10]} Nxd3 {[%emt 0:00:33]} 12. cxd3 {[%emt 0:00:08]} O-O {[%emt 0:00:10]} 13. Ne4 {[%emt 0:00:05]} Bc7 {[%emt 0:00:17]} 14. Qc2 {[%emt 0:00:10]} c5 {[%emt 0:00:29]} 15. Qxc5 {[%emt 0:00:16]} Ba6 {[%emt 0:00:23]} 16. b3 {[%emt 0:18:31]} Bxd3 {[%emt 0:22:39]} 17. Re1 {[%emt 0:01:33]} Re8 {[%emt 0:00:09]} 18. Ba3 {[%emt 0:19:44]} Bb6 {[%emt 0:00:25]} 19. Qd6 {[%emt 0:02:32]} Nb7 {[%emt 0:00:11]} 20. Qxd8 {[%emt 0:03:52]} Raxd8 {[%emt 0:00:07]} 21. g4 {[%emt 0:15:51]} Rc8 {[%emt 0:15:07]} 22. Rac1 {[%emt 0:01:43]} Rxc1 {[%emt 0:03:08]} 23. Bxc1 {[%emt 0:00:04]} f6 {[%emt 0:00:37]} 24. Ba3 {[%emt 0:02:04]} Rc8 {[%emt 0:03:25]} 25. Nc3 {[%emt 0:01:13]} Kf7 {[%emt 0:06:32]} 26. Rc1 {[%emt 0:04:53]} Ke6 {[%emt 0:05:14]} 27. Ne1 {[%emt 0:04:22]} Bg6 {[%emt 0:07:01]} 28. Na4 {[%emt 0:01:58]} Rxc1 {[%emt 0:05:15]} 29. Bxc1 {[%emt 0:00:06]} Bd4 {[%emt 0:00:03]} 30. Bb2 {[%emt 0:01:13]} Bb1 {[%emt 0:03:19]} 31. a3 {[%emt 0:04:15]} Kd5 {[%emt 0:03:08]} 32. Bxd4 {[%emt 0:05:05]} exd4 {[%emt 0:01:31]} 33. d3 {[%emt 0:02:05]} Nc5 {[%emt 0:04:24]} 34. Nxc5 {[%emt 0:00:15]} Kxc5 {[%emt 0:00:05]} 35. Kf1 {[%emt 0:00:13]} a5 {[%emt 0:03:10]} 36. Ke2 {[%emt 0:00:19]} Ba2 {[%emt 0:00:17]} 37. b4+ {[%emt 0:00:23]} axb4 {[%emt 0:00:09]} 38. axb4+ {[%emt 0:00:04]} Kxb4 {[%emt 0:00:23]} 39. Nf3 {[%emt 0:05:48]} Kc3 {[%emt 0:00:49]} 40. Nd2 {[%emt 0:00:18]} Bd5 {[%emt 0:00:53]} 41. h4 {[%emt 0:00:19]} Kc2 {[%emt 0:05:21]} 42. f3 {[%emt 0:01:45]} Kc3 {[%emt 0:00:52]} 43. Nf1 {[%emt 0:01:07]} Bc6 {[%emt 0:07:59]} 44. Ng3 {[%emt 0:00:24]} Bb5 {[%emt 0:00:33]} 45. Ne4+ {[%emt 0:00:06]} Kc2 {[%emt 0:00:07]} 46. Nc5 {[%emt 0:00:53]} g6 {[%emt 0:00:27]} 47. f4 {[%emt 0:00:52]} f5 {[%emt 0:00:31]} 48. gxf5 {[%emt 0:00:44]} gxf5 {[%emt 0:00:02]} 49. Ne6 {[%emt 0:00:29]} Bxd3+ {[%emt 0:00:15]} 50. Kf2 {[%emt 0:00:21]} Kc3 {[%emt 0:00:07]} 51. h5 {[%emt 0:00:09]} Be4 {[%emt 0:03:10]} 52. Nc7 {[%emt 0:01:00]} Bc6 {[%emt 0:00:12]} 53. Ne6 {[%emt 0:00:28]} d3 {[%emt 0:00:12]} 54. Ng5 {[%emt 0:00:36]} d2 {[%emt 0:00:12]} 55. Ke2 {[%emt 0:00:06]} Bb5+ {[%emt 0:00:06]} 56. Kd1 {[%emt 0:00:10]} Ba4+ {[%emt 0:00:05]} 0-1

[Event "2nd Charlotte Masters 2021"]
[Site "Charlotte"]
[Date "2021.04.09"]
[Round "1.2"]
[White "Wu, Derek"]
[Black "Wang, Tianqi"]
[Result "0-1"]
[ECO "D00"]
[WhiteElo "2175"]
[BlackElo "2335"]
[Annotator "NA"]
[PlyCount "72"]
[EventDate "2021.04.09"]
[EventType "swiss"]
[EventCountry "USA"]
[SourceTitle "playchess.com"]
[Source "ChessBase"]
[SourceQuality "1"]
[TimeControl "5400+30"]

1. d4 {[%emt 0:00:00]} Nf6 {[%emt 0:10:02]} 2. Bg5 {[%emt 0:00:00]} d5 {[%emt 0:00:05]} 3. Nd2 {[%emt 0:00:14]} Nbd7 {[%emt 0:01:28]} 4. e3 {[%emt 0:01:18]} c5 {[%emt 0:00:23]} 5. dxc5 {[%emt 0:06:44]} Nxc5 {[%emt 0:02:37]} 6. Bxf6 {[%emt 0:01:19]} gxf6 {[%emt 0:03:08]} 7. Bb5+ {[%emt 0:04:04]} Bd7 {[%emt 0:01:43]} 8. Bxd7+ {[%emt 0:01:06]} Qxd7 {[%emt 0:00:06]} 9. Qh5 {[%emt 0:02:04]} e6 {[%emt 0:01:31]} 10. O-O-O {[%emt 0:02:23]} Qa4 {[%emt 0:03:47]} 11. Kb1 {[%emt 0:02:07]} Rc8 {[%emt 0:01:06]} 12. Nb3 {[%emt 0:03:58]} Rg8 {[%emt 0:08:45]} 13. Nh3 {[%emt 0:20:45]} Ne4 {[%emt 0:15:25]} 14. Nf4 {[%emt 0:05:20]} Nxf2 {[%emt 0:22:42]} 15. Nxd5 {[%emt 0:00:56]} Rg6 {[%emt 0:01:47]} 16. Nc3 {[%emt 0:06:44]} Qc6 {[%emt 0:02:18]} 17. Nd4 {[%emt 0:01:34]} Qc5 {[%emt 0:01:04]} 18. Qf3 {[%emt 0:01:27]} Nxd1 {[%emt 0:04:15]} 19. Rxd1 {[%emt 0:00:11]} Qb6 {[%emt 0:02:21]} 20. Nce2 {[%emt 0:03:09]} Be7 {[%emt 0:03:10]} 21. Rd3 {[%emt 0:00:51]} Rc7 {[%emt 0:01:03]} 22. a3 {[%emt 0:04:17]} Rd7 {[%emt 0:00:25]} 23. Nf4 {[%emt 0:00:53]} Rg5 {[%emt 0:00:59]} 24. h4 {[%emt 0:01:38]} Rg8 {[%emt 0:01:40]} 25. Rb3 {[%emt 0:02:32]} Qa6 {[%emt 0:00:24]} 26. Rc3 {[%emt 0:04:54]} e5 {[%emt 0:01:58]} 27. Nd5 {[%emt 0:00:56]} Bd8 {[%emt 0:01:25]} 28. Nf5 {[%emt 0:01:20]} e4 {[%emt 0:00:36]} 29. Qxe4+ {[%emt 0:10:02]} Qe6 {[%emt 0:00:06]} 30. Qb4 {[%emt 0:01:36]} Rxd5 {[%emt 0:00:41]} 31. Nd4 {[%emt 0:00:19]} Qd7 {[%emt 0:00:12]} 32. Nb3 {[%emt 0:01:11]} Rg4 {[%emt 0:00:33]} 33. e4 {[%emt 0:00:13]} Rd1+ {[%emt 0:00:15]} 34. Ka2 {[%emt 0:00:02]} Be7 {[%emt 0:00:17]} 35. Qa5 {[%emt 0:00:08]} b6 {[%emt 0:00:16]} 36. Qh5 {[%emt 0:00:21]} a5 {[%emt 0:02:03]} 0-1

[Event "2nd Charlotte Masters 2021"]
[Site "Charlotte"]
[Date "2021.04.09"]
[Round "1.3"]
[White "Mardov, Dimitar"]
[Black "Eckert, Doug"]
[Result "1/2-1/2"]
[ECO "C54"]
[WhiteElo "2312"]
[BlackElo "2162"]
[Annotator "NA"]
[PlyCount "79"]
[EventDate "2021.04.09"]
[EventType "swiss"]
[EventCountry "USA"]
[SourceTitle "playchess.com"]
[Source "ChessBase"]
[SourceQuality "1"]
[TimeControl "5400+30"]

1. e4 {[%emt 0:00:00]} e5 {[%emt 0:00:00]} 2. Nf3 {[%emt 0:00:04]} Nc6 {[%emt 0:00:00]} 3. Bc4 {[%emt 0:00:04]} Bc5 {[%emt 0:00:00]} 4. O-O {[%emt 0:00:43]} Nf6 {[%emt 0:00:00]} 5. d3 {[%emt 0:00:22]} d6 {[%emt 0:00:23]} 6. h3 {[%emt 0:00:57]} h6 {[%emt 0:01:26]} 7. c3 {[%emt 0:01:43]} O-O {[%emt 0:01:38]} 8. a4 {[%emt 0:01:14]} a5 {[%emt 0:00:10]} 9. Re1 {[%emt 0:01:03]} Be6 {[%emt 0:02:44]} 10. Bb5 {[%emt 0:03:52]} Bd7 {[%emt 0:05:22]} 11. d4 {[%emt 0:06:51]} Bb6 {[%emt 0:01:05]} 12. d5 {[%emt 0:08:52]} Ne7 {[%emt 0:01:25]} 13. Nbd2 {[%emt 0:02:55]} Ng6 {[%emt 0:10:57]} 14. Nc4 {[%emt 0:03:00]} Ba7 {[%emt 0:04:22]} 15. Bxd7 {[%emt 0:03:09]} Qxd7 {[%emt 0:00:36]} 16. b4 {[%emt 0:05:00]} axb4 {[%emt 0:04:58]} 17. cxb4 {[%emt 0:00:05]} b5 {[%emt 0:01:46]} 18. Na5 {[%emt 0:03:05]} Ne7 {[%emt 0:05:09]} 19. Qc2 {[%emt 0:03:40]} bxa4 {[%emt 0:03:25]} 20. Bd2 {[%emt 0:04:47]} Rfc8 {[%emt 0:04:20]} 21. Qxa4 {[%emt 0:09:42]} Qxa4 {[%emt 0:07:34]} 22. Rxa4 {[%emt 0:00:08]} Bb6 {[%emt 0:04:25]} 23. Raa1 {[%emt 0:02:34]} Nd7 {[%emt 0:03:11]} 24. g4 {[%emt 0:10:57]} Bxa5 {[%emt 0:08:17]} 25. bxa5 {[%emt 0:00:12]} Nc5 {[%emt 0:00:05]} 26. Ra3 {[%emt 0:04:57]} c6 {[%emt 0:02:33]} 27. dxc6 {[%emt 0:00:30]} Nxc6 {[%emt 0:00:29]} 28. Kg2 {[%emt 0:02:06]} Ra6 {[%emt 0:00:39]} 29. Nh4 {[%emt 0:02:55]} Rca8 {[%emt 0:02:52]} 30. Nf5 {[%emt 0:02:38]} Nxa5 {[%emt 0:01:00]} 31. Rxa5 {[%emt 0:02:02]} Rxa5 {[%emt 0:00:16]} 32. Bxa5 {[%emt 0:00:12]} Rxa5 {[%emt 0:00:01]} 33. Nxd6 {[%emt 0:00:56]} f6 {[%emt 0:05:03]} 34. Nf5 {[%emt 0:02:21]} Ra2 {[%emt 0:01:02]} 35. Re3 {[%emt 0:00:53]} Rc2 {[%emt 0:03:25]} 36. h4 {[%emt 0:01:01]} Kh7 {[%emt 0:03:58]} 37. h5 {[%emt 0:01:35]} g6 {[%emt 0:00:34]} 38. hxg6+ {[%emt 0:00:27]} Kxg6 {[%emt 0:00:05]} 39. Kg3 {[%emt 0:02:13]} Rc3 {[%emt 0:02:24]} 40. f3 {[%emt 0:01:28]} 1/2-1/2

[Event "2nd Charlotte Masters 2021"]
[Site "Charlotte"]
[Date "2021.04.09"]
[Round "1.4"]
[White "Wu, Rochelle"]
[Black "Colas, Joshua"]
[Result "0-1"]
[ECO "D36"]
[WhiteElo "2132"]
[BlackElo "2298"]
[Annotator "NA"]
[PlyCount "72"]
[EventDate "2021.04.09"]
[EventType "swiss"]
[EventCountry "USA"]
[SourceTitle "playchess.com"]
[Source "ChessBase"]
[SourceQuality "1"]
[TimeControl "5400+30"]

1. d4 {[%emt 0:00:00]} d5 {[%emt 0:05:51]} 2. c4 {[%emt 0:00:00]} e6 {[%emt 0:00:19]} 3. Nc3 {[%emt 0:00:18]} Nf6 {[%emt 0:00:40]} 4. cxd5 {[%emt 0:00:21]} exd5 {[%emt 0:00:12]} 5. Bg5 {[%emt 0:00:24]} Nbd7 {[%emt 0:00:14]} 6. e3 {[%emt 0:00:20]} c6 {[%emt 0:00:09]} 7. Bd3 {[%emt 0:01:33]} Be7 {[%emt 0:00:19]} 8. Qc2 {[%emt 0:03:18]} O-O {[%emt 0:00:55]} 9. Nge2 {[%emt 0:02:15]} Re8 {[%emt 0:00:17]} 10. O-O {[%emt 0:01:52]} Nf8 {[%emt 0:00:56]} 11. Rac1 {[%emt 0:06:17]} g6 {[%emt 0:01:09]} 12. a3 {[%emt 0:05:19]} a5 {[%emt 0:01:37]} 13. Na4 {[%emt 0:13:57]} Ne6 {[%emt 1:23:52]} 14. Bh4 {[%emt 0:00:25]} Ng7 {[%emt 0:00:00]} 15. Nc5 {[%emt 0:05:13]} b6 {[%emt 0:00:00]} 16. Na4 {[%emt 0:01:19]} Bb7 {[%emt 0:00:00]} 17. h3 {[%emt 0:04:10]} Nd7 {[%emt 0:00:00]} 18. Bg3 {[%emt 0:00:53]} b5 {[%emt 0:00:00]} 19. Nac3 {[%emt 0:05:37]} f5 {[%emt 0:00:00]} 20. Qb3 {[%emt 0:09:45]} a4 {[%emt 0:00:00]} 21. Qa2 {[%emt 0:00:57]} Nf6 {[%emt 0:00:00]} 22. f3 {[%emt 0:09:43]} Kh8 {[%emt 0:00:00]} 23. e4 {[%emt 0:10:56]} fxe4 {[%emt 0:00:00]} 24. fxe4 {[%emt 0:00:26]} dxe4 {[%emt 0:00:00]} 25. Bxe4 {[%emt 0:02:48]} Nxe4 {[%emt 0:00:00]} 26. Nxe4 {[%emt 0:00:08]} c5 {[%emt 0:00:00]} 27. N4c3 {[%emt 0:06:36]} b4 {[%emt 0:00:00]} 28. axb4 {[%emt 0:00:21]} cxb4 {[%emt 0:00:00]} 29. Be5 {[%emt 0:02:36]} bxc3 {[%emt 0:00:00]} 30. Qf7 {[%emt 0:00:08]} Rg8 {[%emt 0:00:00]} 31. Nf4 {[%emt 0:00:13]} Qe8 {[%emt 0:00:00]} 32. Ne6 {[%emt 0:00:54]} Qxf7 {[%emt 0:00:00]} 33. Rxf7 {[%emt 0:00:05]} cxb2 {[%emt 0:00:00]} 34. Rcf1 {[%emt 0:04:37]} Bd6 {[%emt 0:00:00]} 35. Bxg7+ {[%emt 0:03:08]} Rxg7 {[%emt 0:00:00]} 36. Nxg7 {[%emt 0:00:33]} Be4 {[%emt 0:00:00]} 0-1

[Event "2nd Charlotte Masters 2021"]
[Site "Charlotte"]
[Date "2021.04.09"]
[Round "1.6"]
[White "Putnam, Liam"]
[Black "Oberoi, Shelev"]
[Result "0-1"]
[ECO "A65"]
[WhiteElo "2076"]
[BlackElo "2229"]
[Annotator "NA"]
[PlyCount "100"]
[EventDate "2021.04.09"]
[EventType "swiss"]
[EventCountry "USA"]
[SourceTitle "playchess.com"]
[Source "ChessBase"]
[SourceQuality "1"]
[TimeControl "5400+30"]

1. d4 {[%emt 0:00:00]} Nf6 {[%emt 0:00:00]} 2. c4 {[%emt 0:00:00]} g6 {[%emt 0:00:00]} 3. f3 {[%emt 0:00:00]} Bg7 {[%emt 0:04:06]} 4. e4 {[%emt 0:00:14]} d6 {[%emt 0:01:12]} 5. Nc3 {[%emt 0:00:25]} O-O {[%emt 0:00:48]} 6. Nge2 {[%emt 0:00:09]} c5 {[%emt 0:00:48]} 7. d5 {[%emt 0:01:04]} e6 {[%emt 0:05:44]} 8. Ng3 {[%emt 0:00:19]} exd5 {[%emt 0:01:16]} 9. cxd5 {[%emt 0:00:04]} Na6 {[%emt 0:06:18]} 10. Be2 {[%emt 0:06:05]} Bd7 {[%emt 0:02:37]} 11. O-O {[%emt 0:10:42]} h5 {[%emt 0:00:44]} 12. Be3 {[%emt 0:03:44]} Rb8 {[%emt 0:08:04]} 13. Qd2 {[%emt 0:03:38]} Nh7 {[%emt 0:02:54]} 14. f4 {[%emt 0:02:53]} h4 {[%emt 0:04:09]} 15. Nh1 {[%emt 0:00:23]} Re8 {[%emt 0:00:17]} 16. Nf2 {[%emt 0:02:37]} b5 {[%emt 0:08:14]} 17. a4 {[%emt 0:07:35]} Nc7 {[%emt 0:06:57]} 18. e5 {[%emt 0:09:01]} bxa4 {[%emt 0:04:56]} 19. Nfe4 {[%emt 0:06:54]} dxe5 {[%emt 0:03:13]} 20. Bxc5 {[%emt 0:06:47]} Bf5 {[%emt 0:02:45]} 21. d6 {[%emt 0:03:52]} Na8 {[%emt 0:08:10]} 22. Rxa4 {[%emt 0:06:56]} exf4 {[%emt 0:04:27]} 23. d7 {[%emt 0:15:46]} Qxd7 {[%emt 0:07:09]} 24. Qxd7 {[%emt 0:00:52]} Bxd7 {[%emt 0:00:21]} 25. Rxa7 {[%emt 0:00:36]} Be6 {[%emt 0:04:34]} 26. Rfa1 {[%emt 0:04:43]} Nb6 {[%emt 0:04:40]} 27. Nd6 {[%emt 0:00:30]} Red8 {[%emt 0:00:20]} 28. Rb7 {[%emt 0:06:03]} Bd4+ {[%emt 0:03:11]} 29. Bxd4 {[%emt 0:00:24]} Rxb7 {[%emt 0:00:02]} 30. Nxb7 {[%emt 0:00:11]} Rxd4 {[%emt 0:00:07]} 31. Nc5 {[%emt 0:01:25]} Bf5 {[%emt 0:02:35]} 32. Ra6 {[%emt 0:01:04]} Nd7 {[%emt 0:01:08]} 33. Nxd7 {[%emt 0:00:39]} Bxd7 {[%emt 0:00:15]} 34. Rb6 {[%emt 0:00:19]} h3 {[%emt 0:01:03]} 35. Rb8+ {[%emt 0:00:29]} Kg7 {[%emt 0:00:08]} 36. Rd8 {[%emt 0:00:03]} hxg2 {[%emt 0:01:25]} 37. Bb5 {[%emt 0:00:11]} Ng5 {[%emt 0:02:54]} 38. h4 {[%emt 0:01:36]} Bxb5 {[%emt 0:00:17]} 39. Rxd4 {[%emt 0:00:22]} Nf3+ {[%emt 0:00:01]} 40. Kxg2 {[%emt 0:00:02]} Nxd4 {[%emt 0:00:11]} 41. Nxb5 {[%emt 0:00:49]} Nxb5 {[%emt 0:00:20]} 42. Kf3 {[%emt 0:00:02]} f5 {[%emt 0:00:12]} 43. Kxf4 {[%emt 0:00:05]} Kf6 {[%emt 0:00:02]} 44. b3 {[%emt 0:00:12]} Nd4 {[%emt 0:00:10]} 45. b4 {[%emt 0:00:02]} Ne6+ {[%emt 0:00:07]} 46. Ke3 {[%emt 0:00:06]} Ke5 {[%emt 0:00:06]} 47. b5 {[%emt 0:00:03]} Nc5 {[%emt 0:00:11]} 48. b6 {[%emt 0:00:04]} f4+ {[%emt 0:00:05]} 49. Kf3 {[%emt 0:00:06]} Kf5 {[%emt 0:00:05]} 50. b7 {[%emt 0:00:12]} Nxb7 {[%emt 0:00:05]} 0-1

[Event "2nd Charlotte Masters 2021"]
[Site "Charlotte"]
[Date "2021.04.12"]
[Round "6.3"]
[White "Mardov, Dimitar"]
[Black "Liang, Jason"]
[Result "1-0"]
[ECO "D13"]
[WhiteElo "2312"]
[BlackElo "2351"]
[Annotator "RC"]
[PlyCount "181"]
[EventDate "2021.04.09"]
[EventType "swiss"]
[EventCountry "USA"]
[SourceTitle "playchess.com"]
[Source "ChessBase"]
[SourceQuality "1"]
[TimeControl "5400+30"]

1. d4 {[%emt 0:00:07]} d5 {[%emt 0:04:51]} 2. c4 {[%emt 0:00:39]} c6 {[%emt 0:00:09]} 3. cxd5 {[%emt 0:01:24]} cxd5 {[%emt 0:00:08]} 4. Nf3 {[%emt 0:00:47]} Nf6 {[%emt 0:00:14]} 5. Nc3 {[%emt 0:00:20]} Nc6 {[%emt 0:00:08]} 6. Bf4 {[%emt 0:02:26]} a6 {[%emt 0:00:10]} 7. e3 {[%emt 0:02:16]} Bg4 {[%emt 0:01:23]} 8. Be2 {[%emt 0:03:14]} e6 {[%emt 0:06:29]} 9. a3 {[%emt 0:06:47]} Bd6 {[%emt 0:02:04]} 10. Bxd6 {[%emt 0:00:49]} Qxd6 {[%emt 0:00:09]} 11. Nd2 {[%emt 0:02:38]} Bxe2 {[%emt 0:01:56]} 12. Qxe2 {[%emt 0:03:13]} O-O {[%emt 0:01:54]} 13. O-O {[%emt 0:00:45]} Rfc8 {[%emt 0:03:32]} 14. Rfc1 {[%emt 0:01:26]} Rc7 {[%emt 0:01:22]} 15. Na4 {[%emt 0:05:07]} Rac8 {[%emt 0:02:46]} 16. Nb3 {[%emt 0:01:33]} e5 {[%emt 0:09:10]} 17. Qd1 {[%emt 0:11:17]} h5 {[%emt 0:09:53]} 18. h3 {[%emt 0:01:31]} g6 {[%emt 0:05:37]} 19. Rc2 {[%emt 0:09:39]} exd4 {[%emt 0:01:02]} 20. exd4 {[%emt 0:04:01]} Re8 {[%emt 0:07:21]} 21. Re2 {[%emt 0:03:02]} Rxe2 {[%emt 0:03:53]} 22. Qxe2 {[%emt 0:00:08]} Re7 {[%emt 0:00:26]} 23. Qf3 {[%emt 0:02:11]} Kg7 {[%emt 0:04:04]} 24. Rd1 {[%emt 0:01:24]} Ne4 {[%emt 0:01:20]} 25. Nc3 {[%emt 0:02:38]} h4 {[%emt 0:01:30]} 26. Nc5 {[%emt 0:06:09]} Nf6 {[%emt 0:11:11]} 27. Nb3 {[%emt 0:02:38]} Nd8 {[%emt 0:02:36]} 28. Nd2 {[%emt 0:01:28]} Re6 {[%emt 0:01:36]} 29. Nf1 {[%emt 0:01:33]} Nc6 {[%emt 0:01:11]} 30. Ne3 {[%emt 0:00:33]} Ne7 {[%emt 0:00:25]} 31. Rd2 {[%emt 0:04:58]} Ne4 {[%emt 0:01:36]} 32. Rc2 {[%emt 0:01:44]} f5 {[%emt 0:02:04]} 33. Ne2 {[%emt 0:02:11]} Nf6 {[%emt 0:01:43]} 34. Rc1 {[%emt 0:02:34]} Re4 {[%emt 0:00:58]} 35. Rd1 {[%emt 0:00:46]} Nc6 {[%emt 0:01:54]} 36. Nc2 {[%emt 0:00:19]} Re7 {[%emt 0:01:26]} 37. Ne3 {[%emt 0:00:59]} Re4 {[%emt 0:01:16]} 38. Nc2 {[%emt 0:00:11]} Ne7 {[%emt 0:01:44]} 39. Re1 {[%emt 0:02:00]} g5 {[%emt 0:01:47]} 40. Nc3 {[%emt 0:00:58]} Rxe1+ {[%emt 0:00:44]} 41. Nxe1 {[%emt 0:00:05]} Ne4 {[%emt 0:04:30]} 42. Qe3 {[%emt 0:00:41]} Qf6 {[%emt 0:01:16]} 43. Nf3 {[%emt 0:01:43]} f4 {[%emt 0:00:50]} 44. Qe2 {[%emt 0:00:50]} Qf5 {[%emt 0:01:02]} 45. Nd2 {[%emt 0:00:50]} Nc6 {[%emt 0:00:14]} 46. Ndxe4 {[%emt 0:01:19]} dxe4 {[%emt 0:00:01]} 47. d5 {[%emt 0:00:58]} Ne5 {[%emt 0:00:51]} 48. Qxe4 {[%emt 0:02:01]} Qxe4 {[%emt 0:00:43]} 49. Nxe4 {[%emt 0:00:04]} Kg6 {[%emt 0:00:32]} 50. Nc5 {[%emt 0:03:10]} Nc4 {[%emt 0:00:23]} 51. Nxb7 {[%emt 0:00:41]} Kf6 {[%emt 0:00:15]} 52. Nc5 {[%emt 0:01:30]} Ke5 {[%emt 0:00:46]} 53. Nxa6 {[%emt 0:01:03]} Nxb2 {[%emt 0:00:01]} 54. Nc7 {[%emt 0:01:55]} Nc4 {[%emt 0:00:38]} 55. a4 {[%emt 0:00:21]} Kd6 {[%emt 0:01:08]} 56. Ne6 {[%emt 0:00:18]} Nb6 {[%emt 0:00:12]} 57. a5 {[%emt 0:00:42]} Nxd5 {[%emt 0:00:07]} 58. Nxg5 {[%emt 0:00:10]} Kc5 {[%emt 0:00:07]} 59. Nf3 {[%emt 0:00:39]} Kb5 {[%emt 0:00:04]} 60. Nxh4 {[%emt 0:00:05]} Kxa5 {[%emt 0:00:03]} 61. Kf1 {[%emt 0:00:29]} Kb5 {[%emt 0:00:08]} 62. Ke2 {[%emt 0:00:12]} Kc5 {[%emt 0:00:13]} 63. Kf3 {[%emt 0:00:07]} Kd6 {[%emt 0:03:44]} 64. Ng6 {[%emt 0:00:05]} Nf6 {[%emt 0:00:00]} 65. Nxf4 {[%emt 0:00:09]} Ke5 {[%emt 0:00:00]} 66. Nd3+ {[%emt 0:00:14]} Kd4 {[%emt 0:00:00]} 67. Nc1 {[%emt 0:00:13]} Ke5 {[%emt 0:00:00]} 68. Ne2 {[%emt 0:00:13]} Ne4 {[%emt 0:00:00]} 69. g4 {[%emt 0:00:24]} Ng5+ {[%emt 0:00:00]} 70. Kg2 {[%emt 0:00:14]} Ke4 {[%emt 0:00:00]} 71. Kg3 {[%emt 0:00:10]} Kd3 {[%emt 0:00:00]} 72. Ng1 {[%emt 0:00:47]} Ke4 {[%emt 0:00:00]} 73. h4 {[%emt 0:00:10]} Ne6 {[%emt 0:00:00]} 74. Nh3 {[%emt 0:00:17]} Nd4 {[%emt 0:00:00]} 75. Ng5+ {[%emt 0:00:04]} Kd5 {[%emt 0:00:00]} 76. Kf4 {[%emt 0:00:29]} Kd6 {[%emt 0:00:00]} 77. Ke4 {[%emt 0:00:23]} Nc6 {[%emt 0:00:00]} 78. f4 {[%emt 0:00:22]} Ke7 {[%emt 0:00:00]} 79. Nf3 {[%emt 0:00:10]} Kf6 {[%emt 0:00:00]} 80. h5 {[%emt 0:00:12]} Kg7 {[%emt 0:00:00]} 81. Nd4 {[%emt 0:00:08]} Nd8 {[%emt 0:00:00]} 82. g5 {[%emt 0:00:07]} Nf7 {[%emt 0:00:00]} 83. Kd5 {[%emt 0:00:08]} Kh8 {[%emt 0:00:00]} 84. Nf5 {[%emt 0:00:15]} Nd8 {[%emt 0:00:00]} 85. Nd6 {[%emt 0:00:21]} Kg7 {[%emt 0:00:00]} 86. f5 {[%emt 0:00:04]} Kh8 {[%emt 0:00:00]} 87. f6 {[%emt 0:00:08]} Kg8 {[%emt 0:00:00]} 88. g6 {[%emt 0:00:08]} Kh8 {[%emt 0:00:06]} 89. Nf7+ {[%emt 0:00:20]} Nxf7 {[%emt 0:00:09]} 90. gxf7 {[%emt 0:00:05]} Kh7 {[%emt 0:00:05]} 91. Ke6 {[%emt 0:00:05]} 1-0